[Event "FIDE CB Open 2022"]
[Site "Ceske Budejovice"]
[Date "2022.07.03"]
[Round "3.19"]
[White "Sadek, Vojtech"]
[Black "Palchuk, Andrii"]
[Result "0-1"]
[ECO "B12"]
[WhiteElo "1973"]
[BlackElo "2248"]
[Annotator "ChessBase"]
[PlyCount "70"]
[EventDate "2022.07.01"]
[EventType "swiss"]
[EventCountry "CZE"]
[SourceTitle "playchess.com"]
[Source "ChessBase"]
[SourceQuality "1"]
[TimeControl "40/5400+30:1800+30"]

1. e4 {[%emt 0:00:03]} c6 {[%emt 0:00:03]} 2. d4 {[%emt 0:00:05]} d5 {[%emt 0:00:02]} 3. f3 {[%emt 0:00:06]} Qb6 {[%emt 0:00:24]} 4. a4 {[%emt 0:00:11]} a5 {[%emt 0:03:12]} 5. exd5 {[%emt 0:03:30]} cxd5 {[%emt 0:00:40]} 6. Nc3 {[%emt 0:00:47]} e6 {[%emt 0:04:31]} 7. Bb5+ {[%emt 0:02:09]} Nc6 {[%emt 0:01:39]} 8. Nge2 {[%emt 0:00:28]} Nf6 {[%emt 0:01:28]} 9. O-O {[%emt 0:02:33]} Be7 {[%emt 0:06:39]} 10. Kh1 {[%emt 0:03:42]} Bd7 {[%emt 0:02:47]} 11. Bf4 {[%emt 0:10:12]} O-O {[%emt 0:00:42]} 12. Re1 {[%emt 0:06:39]} Rac8 {[%emt 0:06:12]} 13. Qd2 {[%emt 0:05:41]} Bb4 {[%emt 0:12:11]} 14. Bg5 {[%emt 0:05:45]} Ne8 {[%emt 0:00:34]} 15. Qd3 {[%emt 0:07:43]} Nd6 {[%emt 0:04:11]} 16. Red1 {[%emt 0:03:32]} Rfe8 {[%emt 0:06:13]} 17. Bf4 {[%emt 0:05:59]} Nf5 {[%emt 0:07:40]} 18. Rab1 {[%emt 0:03:40]} Qd8 {[%emt 0:12:10]} 19. Na2 {[%emt 0:03:43]} Bf8 {[%emt 0:00:21]} 20. Qd2 {[%emt 0:07:57]} Nce7 {[%emt 0:05:44]} 21. Nac3 {[%emt 0:02:44]} Bc6 {[%emt 0:04:32]} 22. Ng3 {[%emt 0:03:42]} Nxg3+ {[%emt 0:02:12]} 23. hxg3 {[%emt 0:01:58]} Nf5 {[%emt 0:01:02]} 24. Bd3 {[%emt 0:00:32]} Nxd4 {[%emt 0:02:04]} 25. Bxh7+ {[%emt 0:01:05]} Kxh7 {[%emt 0:00:05]} 26. Qxd4 {[%emt 0:00:05]} Kg8 {[%emt 0:01:42]} 27. Qd3 {[%emt 0:03:39]} e5 {[%emt 0:03:22]} 28. Bd2 {[%emt 0:00:18]} d4 {[%emt 0:02:01]} 29. Nb5 {[%emt 0:05:33]} e4 {[%emt 0:00:23]} 30. Qxd4 {[%emt 0:01:10]} exf3 {[%emt 0:00:15]} 31. Qxd8 {[%emt 0:00:18]} fxg2+ {[%emt 0:02:18]} 32. Kh2 {[%emt 0:00:09]} Rcxd8 {[%emt 0:00:46]} 33. Bxa5 {[%emt 0:00:23]} Rxd1 {[%emt 0:00:18]} 34. Rxd1 {[%emt 0:00:30]} Re5 {[%emt 0:00:40]} 35. g4 {[%emt 0:00:11]} Bc5 {[%emt 0:00:09]} 0-1

[Event "FIDE CB Open 2022"]
[Site "Ceske Budejovice"]
[Date "2022.07.03"]
[Round "3.20"]
[White "Vrchotka, Josef"]
[Black "Matras, Ondrej"]
[Result "0-1"]
[ECO "C08"]
[WhiteElo "1959"]
[BlackElo "2229"]
[Annotator "RC"]
[PlyCount "38"]
[EventDate "2022.07.01"]
[EventType "swiss"]
[EventCountry "CZE"]
[SourceTitle "playchess.com"]
[Source "ChessBase"]
[SourceQuality "1"]
[TimeControl "40/5400+30:1800+30"]

1. e4 {[%emt 0:01:45]} e6 {[%emt 0:01:46]} 2. d4 {[%emt 0:00:07]} d5 {[%emt 0:00:01]} 3. Nd2 {[%emt 0:00:10]} a6 {[%emt 0:00:02]} 4. Ngf3 {[%emt 0:00:54]} c5 {[%emt 0:00:09]} 5. exd5 {[%emt 0:00:11]} exd5 {[%emt 0:00:04]} 6. dxc5 {[%emt 0:01:54]} Bxc5 {[%emt 0:00:22]} 7. Nb3 {[%emt 0:00:26]} Bb6 {[%emt 0:01:05]} 8. Bd3 {[%emt 0:02:38]} Nf6 {[%emt 0:00:21]} 9. O-O {[%emt 0:00:20]} O-O {[%emt 0:00:11]} 10. h3 {[%emt 0:00:32]} Qd6 {[%emt 0:01:38]} 11. c3 {[%emt 0:01:39]} Nc6 {[%emt 0:13:29]} 12. Bg5 {[%emt 0:01:30]} h6 {[%emt 0:07:45]} 13. Bh4 {[%emt 0:03:15]} g5 {[%emt 0:01:40]} 14. Bg3 {[%emt 0:00:35]} Qxg3 {[%emt 0:00:11]} 15. Nbd4 {[%emt 0:01:37]} Qd6 {[%emt 0:00:36]} 16. Bc2 {[%emt 0:00:31]} Bd7 {[%emt 0:03:43]} 17. Qd2 {[%emt 0:02:16]} Qf4 {[%emt 0:01:05]} 18. Qd3 {[%emt 0:00:38]} Nxd4 {[%emt 0:01:48]} 19. cxd4 {[%emt 0:00:37]} Bb5 {[%emt 0:00:19]} 0-1

[Event "FIDE CB Open 2022"]
[Site "Ceske Budejovice"]
[Date "2022.07.03"]
[Round "3.21"]
[White "Kula, Dominik"]
[Black "Tsifanskaya, Ludmila A"]
[Result "1-0"]
[ECO "D03"]
[WhiteElo "2229"]
[BlackElo "1941"]
[Annotator "ChessBase"]
[PlyCount "53"]
[EventDate "2022.07.01"]
[EventType "swiss"]
[EventCountry "CZE"]
[SourceTitle "playchess.com"]
[Source "ChessBase"]
[SourceQuality "1"]
[TimeControl "40/5400+30:1800+30"]

1. d4 {[%emt 0:00:10]} Nf6 {[%emt 0:00:13]} 2. Bf4 {[%emt 0:00:05]} d5 {[%emt 0:00:51]} 3. Nf3 {[%emt 0:00:03]} e6 {[%emt 0:00:17]} 4. e3 {[%emt 0:00:22]} Bd6 {[%emt 0:00:41]} 5. Ne5 {[%emt 0:01:03]} O-O {[%emt 0:00:58]} 6. Nd2 {[%emt 0:00:53]} b6 {[%emt 0:04:07]} 7. Bd3 {[%emt 0:00:48]} c5 {[%emt 0:01:13]} 8. c3 {[%emt 0:01:16]} Bb7 {[%emt 0:01:39]} 9. Bg5 {[%emt 0:02:31]} Be7 {[%emt 0:01:28]} 10. Qc2 {[%emt 0:06:24]} c4 {[%emt 0:12:04]} 11. Be2 {[%emt 0:03:50]} Nfd7 {[%emt 0:04:59]} 12. Nxd7 {[%emt 0:02:50]} Nxd7 {[%emt 0:01:52]} 13. h4 {[%emt 0:01:02]} e5 {[%emt 0:17:05]} 14. dxe5 {[%emt 0:03:35]} Nxe5 {[%emt 0:06:19]} 15. Bf4 {[%emt 0:03:56]} Ng6 {[%emt 0:02:54]} 16. Bg3 {[%emt 0:03:45]} d4 {[%emt 0:05:29]} 17. cxd4 {[%emt 0:06:14]} Bxh4 {[%emt 0:03:23]} 18. Bxh4 {[%emt 0:05:16]} Nxh4 {[%emt 0:00:00]} 19. O-O-O {[%emt 0:01:52]} Ng6 {[%emt 0:02:08]} 20. Kb1 {[%emt 0:01:11]} b5 {[%emt 0:00:23]} 21. Rh5 {[%emt 0:01:12]} Bxg2 {[%emt 0:07:26]} 22. f3 {[%emt 0:04:22]} h6 {[%emt 0:02:21]} 23. Rg1 {[%emt 0:01:04]} Nh4 {[%emt 0:00:21]} 24. Qe4 {[%emt 0:00:49]} Qa5 {[%emt 0:02:07]} 25. Nxc4 {[%emt 0:03:20]} Qc7 {[%emt 0:00:48]} 26. Qxh4 {[%emt 0:01:37]} bxc4 {[%emt 0:00:24]} 27. Rxg2 {[%emt 0:00:34]} 1-0

[Event "FIDE CB Open 2022"]
[Site "Ceske Budejovice"]
[Date "2022.07.03"]
[Round "3.22"]
[White "Chval, Zdenek"]
[Black "Hiermann, Dietmar"]
[Result "1/2-1/2"]
[ECO "C92"]
[WhiteElo "2063"]
[BlackElo "2224"]
[Annotator "RC"]
[PlyCount "101"]
[EventDate "2022.07.01"]
[EventType "swiss"]
[EventCountry "CZE"]
[SourceTitle "playchess.com"]
[Source "ChessBase"]
[SourceQuality "1"]
[TimeControl "40/5400+30:1800+30"]

1. e4 {[%emt 0:00:10]} e5 {[%emt 0:00:07]} 2. Nf3 {[%emt 0:00:04]} Nc6 {[%emt 0:00:13]} 3. Bb5 {[%emt 0:00:05]} a6 {[%emt 0:00:05]} 4. Ba4 {[%emt 0:00:03]} Nf6 {[%emt 0:00:07]} 5. O-O {[%emt 0:00:06]} b5 {[%emt 0:02:13]} 6. Bb3 {[%emt 0:00:05]} Be7 {[%emt 0:00:05]} 7. Re1 {[%emt 0:00:07]} d6 {[%emt 0:00:20]} 8. h3 {[%emt 0:00:11]} Na5 {[%emt 0:02:22]} 9. c3 {[%emt 0:00:46]} Nxb3 {[%emt 0:00:08]} 10. Qxb3 {[%emt 0:00:09]} O-O {[%emt 0:01:30]} 11. d4 {[%emt 0:04:34]} exd4 {[%emt 0:05:07]} 12. cxd4 {[%emt 0:05:04]} c5 {[%emt 0:03:10]} 13. Bg5 {[%emt 0:05:43]} h6 {[%emt 0:01:52]} 14. Bxf6 {[%emt 0:09:36]} Bxf6 {[%emt 0:02:10]} 15. e5 {[%emt 0:00:35]} dxe5 {[%emt 0:03:47]} 16. dxe5 {[%emt 0:00:17]} Be7 {[%emt 0:02:08]} 17. Qe3 {[%emt 0:18:02]} Qb6 {[%emt 0:04:47]} 18. Nc3 {[%emt 0:02:13]} Bb7 {[%emt 0:05:20]} 19. Rad1 {[%emt 0:07:09]} Rad8 {[%emt 0:01:36]} 20. Qf4 {[%emt 0:05:18]} Qe6 {[%emt 0:05:52]} 21. b3 {[%emt 0:04:46]} Rxd1 {[%emt 0:01:37]} 22. Rxd1 {[%emt 0:00:15]} Rd8 {[%emt 0:01:25]} 23. Rxd8+ {[%emt 0:02:53]} Bxd8 {[%emt 0:00:02]} 24. Ne4 {[%emt 0:03:45]} Be7 {[%emt 0:04:07]} 25. Nd6 {[%emt 0:05:25]} Bxf3 {[%emt 0:04:21]} 26. gxf3 {[%emt 0:06:47]} f6 {[%emt 0:03:16]} 27. Nf5 {[%emt 0:03:49]} fxe5 {[%emt 0:02:05]} 28. Qg4 {[%emt 0:00:45]} Bf8 {[%emt 0:01:31]} 29. Qe4 {[%emt 0:01:14]} Kf7 {[%emt 0:09:16]} 30. Qb7+ {[%emt 0:01:40]} Kg6 {[%emt 0:06:04]} 31. Ng3 {[%emt 0:02:39]} Kh7 {[%emt 0:04:40]} 32. Qe4+ {[%emt 0:02:35]} Kg8 {[%emt 0:07:51]} 33. f4 {[%emt 0:01:02]} Qxh3 {[%emt 0:03:21]} 34. Qd5+ {[%emt 0:01:43]} Kh7 {[%emt 0:01:28]} 35. fxe5 {[%emt 0:00:11]} Qc8 {[%emt 0:02:01]} 36. e6 {[%emt 0:01:05]} c4 {[%emt 0:02:28]} 37. bxc4 {[%emt 0:02:02]} bxc4 {[%emt 0:00:09]} 38. Qe4+ {[%emt 0:03:37]} Kh8 {[%emt 0:00:14]} 39. e7 {[%emt 0:01:58]} Bxe7 {[%emt 0:00:02]} 40. Qxe7 {[%emt 0:00:04]} c3 {[%emt 0:00:11]} 41. Qe3 {[%emt 0:08:31]} c2 {[%emt 0:01:08]} 42. Ne2 {[%emt 0:01:55]} Qc4 {[%emt 0:02:56]} 43. Nc1 {[%emt 0:02:25]} Kh7 {[%emt 0:04:36]} 44. f4 {[%emt 0:04:32]} Kg6 {[%emt 0:01:47]} 45. Qe5 {[%emt 0:01:15]} Qc6 {[%emt 0:03:20]} 46. Kf2 {[%emt 0:01:55]} Kf7 {[%emt 0:00:14]} 47. Qf5+ {[%emt 0:04:12]} Ke7 {[%emt 0:00:20]} 48. Qe5+ {[%emt 0:00:18]} Kf7 {[%emt 0:00:12]} 49. Qf5+ {[%emt 0:00:05]} Ke7 {[%emt 0:00:48]} 50. Qe5+ {[%emt 0:00:04]} Kf7 {[%emt 0:00:08]} 51. Qf5+ {[%emt 0:00:05]} 1/2-1/2

[Event "FIDE CB Open 2022"]
[Site "Ceske Budejovice"]
[Date "2022.07.03"]
[Round "3.23"]
[White "Lang, Simon"]
[Black "Zima, Jan"]
[Result "0-1"]
[ECO "B98"]
[WhiteElo "1942"]
[BlackElo "2134"]
[Annotator "ChessBase"]
[PlyCount "94"]
[EventDate "2022.07.01"]
[EventType "swiss"]
[EventCountry "CZE"]
[SourceTitle "playchess.com"]
[Source "ChessBase"]
[SourceQuality "1"]
[TimeControl "40/5400+30:1800+30"]

1. e4 {[%emt 0:00:23]} c5 {[%emt 0:00:06]} 2. Nf3 {[%emt 0:00:57]} d6 {[%emt 0:00:07]} 3. d4 {[%emt 0:00:31]} cxd4 {[%emt 0:00:07]} 4. Nxd4 {[%emt 0:00:17]} Nf6 {[%emt 0:00:07]} 5. Nc3 {[%emt 0:00:31]} a6 {[%emt 0:00:10]} 6. Bg5 {[%emt 0:00:48]} e6 {[%emt 0:00:09]} 7. f4 {[%emt 0:00:49]} h6 {[%emt 0:00:20]} 8. Bh4 {[%emt 0:01:47]} Be7 {[%emt 0:00:16]} 9. Qf3 {[%emt 0:21:37]} g5 {[%emt 0:00:21]} 10. fxg5 {[%emt 0:00:36]} Nfd7 {[%emt 0:00:45]} 11. Nxe6 {[%emt 0:20:46]} fxe6 {[%emt 0:00:52]} 12. Qh5+ {[%emt 0:00:19]} Kf8 {[%emt 0:00:06]} 13. Bc4 {[%emt 0:00:24]} Ne5 {[%emt 0:03:32]} 14. O-O+ {[%emt 0:03:55]} Kg7 {[%emt 0:21:06]} 15. Rf6 {[%emt 0:18:04]} Qe8 {[%emt 0:28:29]} 16. gxh6+ {[%emt 0:09:05]} Kh7 {[%emt 0:00:15]} 17. Qe2 {[%emt 0:00:44]} Bxf6 {[%emt 0:06:05]} 18. Bxf6 {[%emt 0:00:14]} Rf8 {[%emt 0:01:39]} 19. Bg7 {[%emt 0:00:37]} Rf7 {[%emt 0:00:36]} 20. Rd1 {[%emt 0:00:47]} Qc6 {[%emt 0:04:38]} 21. Bxe5 {[%emt 0:06:41]} dxe5 {[%emt 0:02:05]} 22. Qh5 {[%emt 0:00:22]} Qc5+ {[%emt 0:02:31]} 23. Kh1 {[%emt 0:00:15]} Qf8 {[%emt 0:14:48]} 24. Qxe5 {[%emt 0:00:57]} b5 {[%emt 0:00:51]} 25. Bd3 {[%emt 0:00:32]} Nc6 {[%emt 0:00:08]} 26. Qg5 {[%emt 0:02:22]} Nb4 {[%emt 0:00:26]} 27. Be2 {[%emt 0:00:16]} Bb7 {[%emt 0:02:21]} 28. h3 {[%emt 0:00:47]} Qe7 {[%emt 0:02:28]} 29. Qe5 {[%emt 0:01:23]} Nc6 {[%emt 0:00:46]} 30. Qh5 {[%emt 0:00:20]} b4 {[%emt 0:01:07]} 31. Na4 {[%emt 0:01:05]} Rg8 {[%emt 0:02:40]} 32. h4 {[%emt 0:01:06]} Rf4 {[%emt 0:01:56]} 33. g4 {[%emt 0:00:47]} Qf7 {[%emt 0:02:40]} 34. Qc5 {[%emt 0:00:09]} Rf2 {[%emt 0:01:08]} 35. Rd7 {[%emt 0:01:37]} Qxd7 {[%emt 0:00:26]} 36. Qxf2 {[%emt 0:00:05]} Qe7 {[%emt 0:01:21]} 37. g5 {[%emt 0:00:11]} Rf8 {[%emt 0:00:41]} 38. Qg3 {[%emt 0:00:19]} Qf7 {[%emt 0:00:48]} 39. h5 {[%emt 0:00:29]} Qf4 {[%emt 0:00:21]} 40. Qg2 {[%emt 0:02:09]} Qc1+ {[%emt 0:00:38]} 41. Kh2 {[%emt 0:30:17]} Qf4+ {[%emt 0:30:26]} 42. Kg1 {[%emt 0:00:32]} Ne5 {[%emt 0:00:00]} 43. Nc5 {[%emt 0:00:00]} Qe3+ {[%emt 0:00:00]} 44. Kh1 {[%emt 0:00:00]} Qxc5 {[%emt 0:00:00]} 45. g6+ {[%emt 0:00:00]} Kxh6 {[%emt 0:00:00]} 46. g7 {[%emt 0:00:00]} Rg8 {[%emt 0:00:00]} 47. Bg4 {[%emt 0:00:00]} Qe3 {[%emt 0:00:00]} 0-1

[Event "FIDE CB Open 2022"]
[Site "Ceske Budejovice"]
[Date "2022.07.03"]
[Round "3.24"]
[White "Johannsson, Birkir Isak"]
[Black "Milovs, Daniels"]
[Result "1-0"]
[ECO "A49"]
[WhiteElo "2131"]
[BlackElo "1926"]
[Annotator "RC"]
[PlyCount "115"]
[EventDate "2022.07.01"]
[EventType "swiss"]
[EventCountry "CZE"]
[SourceTitle "playchess.com"]
[Source "ChessBase"]
[SourceQuality "1"]
[TimeControl "40/5400+30:1800+30"]

1. Nf3 {[%emt 0:00:15]} Nf6 {[%emt 0:00:03]} 2. g3 {[%emt 0:00:20]} g6 {[%emt 0:00:06]} 3. b3 {[%emt 0:00:10]} Bg7 {[%emt 0:00:03]} 4. Bb2 {[%emt 0:00:08]} d6 {[%emt 0:00:02]} 5. d4 {[%emt 0:01:01]} O-O {[%emt 0:00:10]} 6. Bg2 {[%emt 0:00:26]} Nc6 {[%emt 0:00:11]} 7. O-O {[%emt 0:00:40]} e5 {[%emt 0:00:13]} 8. dxe5 {[%emt 0:00:03]} Nd7 {[%emt 0:00:06]} 9. Qc1 {[%emt 0:00:04]} dxe5 {[%emt 0:00:16]} 10. Rd1 {[%emt 0:00:07]} Re8 {[%emt 0:06:58]} 11. e4 {[%emt 0:01:21]} Qf6 {[%emt 0:06:31]} 12. Qe3 {[%emt 0:13:37]} Bf8 {[%emt 0:05:56]} 13. Nc3 {[%emt 0:07:07]} Bc5 {[%emt 0:01:40]} 14. Qe2 {[%emt 0:06:47]} Bb6 {[%emt 0:12:22]} 15. Nd5 {[%emt 0:01:22]} Qg7 {[%emt 0:00:50]} 16. a4 {[%emt 0:05:11]} Nf6 {[%emt 0:06:14]} 17. Nxb6 {[%emt 0:03:04]} axb6 {[%emt 0:01:26]} 18. h3 {[%emt 0:03:11]} h6 {[%emt 0:03:23]} 19. Rd2 {[%emt 0:01:43]} Nd7 {[%emt 0:02:32]} 20. Rad1 {[%emt 0:01:52]} Nc5 {[%emt 0:01:27]} 21. Qe3 {[%emt 0:05:33]} Be6 {[%emt 0:06:25]} 22. Ba3 {[%emt 0:02:48]} Na6 {[%emt 0:02:13]} 23. Qc3 {[%emt 0:01:41]} f6 {[%emt 0:01:00]} 24. Bf1 {[%emt 0:08:23]} Nab8 {[%emt 0:04:29]} 25. Kh2 {[%emt 0:01:20]} Qf7 {[%emt 0:01:10]} 26. Bb5 {[%emt 0:01:14]} Kg7 {[%emt 0:01:28]} 27. Nh4 {[%emt 0:02:10]} Rh8 {[%emt 0:02:52]} 28. Nf3 {[%emt 0:00:56]} Na7 {[%emt 0:01:32]} 29. Bb2 {[%emt 0:01:24]} Nxb5 {[%emt 0:04:35]} 30. axb5 {[%emt 0:00:13]} Rc8 {[%emt 0:00:26]} 31. Rd8 {[%emt 0:10:36]} Qe7 {[%emt 0:10:35]} 32. Rxc8 {[%emt 0:12:01]} Bxc8 {[%emt 0:00:06]} 33. Ne1 {[%emt 0:03:33]} c5 {[%emt 0:05:45]} 34. bxc6 {[%emt 0:00:38]} Nxc6 {[%emt 0:01:28]} 35. Qe3 {[%emt 0:00:27]} Qc5 {[%emt 0:01:55]} 36. Qxc5 {[%emt 0:02:18]} bxc5 {[%emt 0:00:01]} 37. Rd5 {[%emt 0:00:47]} Ra2 {[%emt 0:03:18]} 38. Nd3 {[%emt 0:02:40]} Nb4 {[%emt 0:02:52]} 39. Nxb4 {[%emt 0:00:18]} cxb4 {[%emt 0:00:29]} 40. Rc5 {[%emt 0:00:11]} Rxb2 {[%emt 0:04:42]} 41. Rxc8 {[%emt 0:01:54]} f5 {[%emt 0:07:14]} 42. exf5 {[%emt 0:02:29]} gxf5 {[%emt 0:00:08]} 43. Kg2 {[%emt 0:00:26]} e4 {[%emt 0:07:46]} 44. g4 {[%emt 0:03:28]} fxg4 {[%emt 0:03:11]} 45. hxg4 {[%emt 0:00:02]} Kf6 {[%emt 0:00:36]} 46. Kg3 {[%emt 0:01:16]} Ke5 {[%emt 0:01:24]} 47. Rc4 {[%emt 0:04:49]} Kd5 {[%emt 0:04:04]} 48. Kf4 {[%emt 0:10:34]} b5 {[%emt 0:01:23]} 49. Rxb4 {[%emt 0:01:21]} Rxc2 {[%emt 0:02:40]} 50. Rxb5+ {[%emt 0:00:21]} Kc6 {[%emt 0:01:22]} 51. Rf5 {[%emt 0:01:37]} Rxf2+ {[%emt 0:00:42]} 52. Kxe4 {[%emt 0:00:08]} Re2+ {[%emt 0:02:21]} 53. Kf4 {[%emt 0:01:32]} Re6 {[%emt 0:03:23]} 54. b4 {[%emt 0:00:51]} Kb6 {[%emt 0:02:12]} 55. Kg3 {[%emt 0:00:26]} Kc6 {[%emt 0:01:10]} 56. Kh4 {[%emt 0:00:18]} Kb6 {[%emt 0:00:32]} 57. Kh5 {[%emt 0:00:19]} Kc6 {[%emt 0:00:30]} 58. Rb5 {[%emt 0:04:49]} 1-0

[Event "FIDE CB Open 2022"]
[Site "Ceske Budejovice"]
[Date "2022.07.03"]
[Round "3.25"]
[White "Hlavac, Rudolf"]
[Black "Hofstadler, Mario"]
[Result "0-1"]
[ECO "B15"]
[WhiteElo "1931"]
[BlackElo "2123"]
[Annotator "ChessBase"]
[PlyCount "66"]
[EventDate "2022.07.01"]
[EventType "swiss"]
[EventCountry "CZE"]
[SourceTitle "playchess.com"]
[Source "ChessBase"]
[SourceQuality "1"]
[TimeControl "40/5400+30:1800+30"]

1. e4 {[%emt 0:00:06]} c6 {[%emt 0:00:15]} 2. d4 {[%emt 0:00:12]} d5 {[%emt 0:00:06]} 3. Nc3 {[%emt 0:00:13]} dxe4 {[%emt 0:00:10]} 4. Nxe4 {[%emt 0:00:15]} Nf6 {[%emt 0:00:11]} 5. Nxf6+ {[%emt 0:00:16]} exf6 {[%emt 0:00:07]} 6. Nf3 {[%emt 0:00:13]} Bd6 {[%emt 0:00:56]} 7. Be3 {[%emt 0:01:06]} O-O {[%emt 0:02:08]} 8. Qd2 {[%emt 0:00:18]} Bg4 {[%emt 0:04:49]} 9. Be2 {[%emt 0:01:21]} Re8 {[%emt 0:02:38]} 10. h3 {[%emt 0:02:47]} Bh5 {[%emt 0:12:56]} 11. g4 {[%emt 0:07:07]} Bg6 {[%emt 0:01:43]} 12. O-O-O {[%emt 0:00:59]} Be4 {[%emt 0:19:22]} 13. Rhg1 {[%emt 0:06:23]} Na6 {[%emt 0:03:54]} 14. a3 {[%emt 0:03:50]} b5 {[%emt 0:11:40]} 15. Nh4 {[%emt 0:04:02]} g6 {[%emt 0:01:38]} 16. f3 {[%emt 0:03:43]} Bd5 {[%emt 0:02:15]} 17. Rg2 {[%emt 0:05:41]} Nc7 {[%emt 0:08:14]} 18. Kb1 {[%emt 0:00:44]} Bc4 {[%emt 0:04:58]} 19. Bh6 {[%emt 0:04:00]} Nd5 {[%emt 0:01:44]} 20. Rdg1 {[%emt 0:04:27]} Qc7 {[%emt 0:02:22]} 21. Bd1 {[%emt 0:05:00]} b4 {[%emt 0:07:15]} 22. b3 {[%emt 0:06:53]} Nc3+ {[%emt 0:00:55]} 23. Kb2 {[%emt 0:05:07]} Qa5 {[%emt 0:01:34]} 24. a4 {[%emt 0:02:45]} Bd5 {[%emt 0:05:02]} 25. Nf5 {[%emt 0:02:10]} Qc7 {[%emt 0:01:06]} 26. h4 {[%emt 0:04:53]} Re6 {[%emt 0:02:12]} 27. Nxd6 {[%emt 0:05:32]} Qxd6 {[%emt 0:00:04]} 28. Bf4 {[%emt 0:00:34]} Qe7 {[%emt 0:00:45]} 29. g5 {[%emt 0:01:07]} f5 {[%emt 0:00:05]} 30. h5 {[%emt 0:00:57]} Re8 {[%emt 0:00:08]} 31. Be5 {[%emt 0:01:58]} Rxe5 {[%emt 0:00:23]} 32. dxe5 {[%emt 0:00:40]} Qxe5 {[%emt 0:00:08]} 33. Kc1 {[%emt 0:00:30]} Ne4 {[%emt 0:00:36]} 0-1

[Event "FIDE CB Open 2022"]
[Site "Ceske Budejovice"]
[Date "2022.07.03"]
[Round "3.26"]
[White "Koch-Muller, Oscar"]
[Black "Vaculik, Martin"]
[Result "1/2-1/2"]
[ECO "D36"]
[WhiteElo "2115"]
[BlackElo "2284"]
[Annotator "ChessBase"]
[PlyCount "56"]
[EventDate "2022.07.01"]
[EventType "swiss"]
[EventCountry "CZE"]
[SourceTitle "playchess.com"]
[Source "ChessBase"]
[SourceQuality "1"]
[TimeControl "40/5400+30:1800+30"]

1. d4 {[%emt 0:00:02]} d5 {[%emt 0:00:13]} 2. c4 {[%emt 0:00:03]} e6 {[%emt 0:00:37]} 3. Nc3 {[%emt 0:00:09]} Nf6 {[%emt 0:00:08]} 4. cxd5 {[%emt 0:00:18]} exd5 {[%emt 0:00:13]} 5. Bg5 {[%emt 0:00:05]} c6 {[%emt 0:00:16]} 6. e3 {[%emt 0:00:12]} Be7 {[%emt 0:00:04]} 7. Bd3 {[%emt 0:00:28]} Nbd7 {[%emt 0:00:08]} 8. Qc2 {[%emt 0:00:14]} Nh5 {[%emt 0:00:07]} 9. Bxe7 {[%emt 0:01:15]} Qxe7 {[%emt 0:00:14]} 10. Nge2 {[%emt 0:03:27]} g6 {[%emt 0:01:34]} 11. O-O {[%emt 0:06:41]} O-O {[%emt 0:00:24]} 12. Rae1 {[%emt 0:11:08]} Ndf6 {[%emt 0:02:30]} 13. Nf4 {[%emt 0:06:37]} Nxf4 {[%emt 0:09:57]} 14. exf4 {[%emt 0:00:12]} Qb4 {[%emt 0:00:03]} 15. f5 {[%emt 0:15:54]} Kg7 {[%emt 0:01:01]} 16. fxg6 {[%emt 0:08:12]} fxg6 {[%emt 0:05:24]} 17. f4 {[%emt 0:16:02]} Qxd4+ {[%emt 0:11:35]} 18. Kh1 {[%emt 0:00:02]} Bd7 {[%emt 0:00:58]} 19. f5 {[%emt 0:02:40]} g5 {[%emt 0:01:12]} 20. Ne2 {[%emt 0:06:13]} Qb4 {[%emt 0:01:46]} 21. a3 {[%emt 0:03:05]} Qd6 {[%emt 0:00:35]} 22. Nd4 {[%emt 0:02:38]} Rae8 {[%emt 0:05:35]} 23. Qd2 {[%emt 0:01:41]} h6 {[%emt 0:01:29]} 24. Nf3 {[%emt 0:01:07]} Rxe1 {[%emt 0:15:09]} 25. Rxe1 {[%emt 0:01:01]} Re8 {[%emt 0:00:45]} 26. Rxe8 {[%emt 0:03:40]} Bxe8 {[%emt 0:02:00]} 27. Qe3 {[%emt 0:02:02]} c5 {[%emt 0:08:11]} 28. h4 {[%emt 0:01:53]} d4 {[%emt 0:05:39]} 1/2-1/2